bitfinex-derivatives/quotes_BNBF0:USTF0_20250326
["timestamp","ask_amount","ask_price","bid_price","bid_amount"]
[1742996220551,0.494,628.24,628.06,0.26310574]
[1742996220756,0.494,628.24,628.08,0.26310574]
[1742996221058,0.494,628.24,628.09,0.26310574]
[1742996221258,0.494,628.24,628.06,0.26310574]
[1742996221551,0.494,628.24,628.07,0.26310574]
[1742996221856,0.494,628.24,628.06,0.26310574]
[1742996222058,0.494,628.24,628.07,0.58154158]
[1742996222357,0.494,628.24,628.08,0.58153651]
[1742996222656,0.494,628.24,628.09,0.58153144]
[1742996222955,0.494,628.24,628.1,0.58152637]
[1742996223156,0.494,628.24,628.11,0.26310574]
[1742996224250,0.494,628.24,628.12,0.2630862]
[1742996224453,0.494,628.24,628.13,0.2630862]
[1742996224657,0.494,628.24,628.11,0.2630862]
[1742996224857,0.423,628.28,628.12,0.2630862]
[1742996225052,0.423,628.28,628.11,0.2630862]
[1742996225255,0.423,628.28,628.23,1.18574664]
[1742996225656,0.423,628.28,628.24,0.26307945]
[1742996228265,0.423,628.28,628.25,0.26308078]
[1742996228466,0.423,628.28,628.25,0.98272786]
[1742996228770,0.423,628.28,628.26,0.26308078]
[1742996229769,0.423,628.28,628.25,0.98272786]
[1742996229967,0.423,628.28,628.27,0.26312913]
[1742996230568,0.423,628.28,628.26,0.26312913]
[1742996230866,0.423,628.28,628.1,0.31842063]
[1742996230867,0.423,628.28,628.27,0.26312913]
[1742996231068,0.423,628.28,628.24,0.26312913]
[1742996231268,0.423,628.28,628.25,0.26312913]
[1742996231574,0.423,628.28,628.26,0.26312767]
[1742996231773,0.423,628.28,628.23,1.18509168]
[1742996231774,0.423,628.28,628.24,0.26312767]
[1742996231970,0.423,628.28,628.25,0.26312767]
[1742996232171,0.423,628.28,628.24,0.26312767]
[1742996232374,0.423,628.28,628.25,0.26312767]
[1742996232573,0.423,628.28,628.26,0.26312767]
[1742996232774,0.423,628.28,628.11,0.26312767]
[1742996232971,0.423,628.28,628.12,0.26312767]
[1742996233174,0.423,628.28,628.11,0.26312767]
[1742996233370,0.423,628.28,628.12,0.26312767]
[1742996233575,0.423,628.28,628.11,0.26312767]
[1742996233773,0.423,628.28,628.12,0.26312767]
[1742996233972,0.423,628.28,628.11,0.26312767]
[1742996234168,0.423,628.28,628.12,0.26312767]
[1742996234372,0.423,628.28,628.14,1.18509168]
[1742996234768,0.423,628.28,628.15,0.26312767]
[1742996236275,0.423,628.28,628.16,0.26312784]
[1742996236471,0.423,628.28,628.17,0.26312784]
[1742996236674,0.423,628.28,628.14,1.18509168]
[1742996236675,0.423,628.28,628.18,0.26312784]
[1742996236870,0.423,628.28,628.19,1.18509168]
[1742996237072,0.423,628.28,628.2,0.26312784]
[1742996237777,0.423,628.28,628.21,0.26313048]
[1742996237977,0.423,628.28,628.22,0.26313048]
[1742996238279,0.423,628.28,628.23,0.26313048]
[1742996238474,0.423,628.28,628.2,0.26313048]
[1742996238675,0.423,628.28,628.19,1.18509168]
[1742996238676,0.423,628.28,628.21,0.26313048]
[1742996238875,0.423,628.28,628.2,0.26313048]
[1742996239176,0.423,628.28,628.21,1.24570057]
[1742996239377,0.916,628.47,628.22,0.26311255]
[1742996242573,0.916,628.47,628.23,0.26305636]
[1742996242777,0.916,628.47,628.22,0.26305636]
[1742996242972,0.916,628.47,628.23,0.26305636]
[1742996243178,0.423,628.46,628.24,0.26305636]
[1742996243474,0.423,628.46,628.29,1.18586559]
[1742996243676,0.423,628.46,628.3,0.26305636]
[1742996246071,0.423,628.46,628.27,0.26305636]
[1742996246271,0.423,628.46,628.28,0.26305636]
[1742996246576,0.423,628.46,628.29,0.26305636]
[1742996246773,0.423,628.46,628.3,0.26304178]
[1742996246973,0.423,628.46,628.31,0.26304178]
[1742996247171,0.423,628.46,628.32,0.26304178]
[1742996247374,0.423,628.46,628.27,0.26304178]
[1742996247682,0.423,628.46,628.28,0.26304178]
[1742996247881,0.423,628.46,628.36,1.18586559]
[1742996248181,0.423,628.46,628.37,0.26304178]
[1742996249578,0.423,628.46,628.26,0.26304178]
[1742996249784,0.423,628.46,628.27,0.58137625]
[1742996249977,0.423,628.46,628.28,0.58137118]
[1742996250182,0.423,628.46,628.29,0.58136612]
[1742996250381,0.423,628.46,628.3,0.58136105]
[1742996250582,0.423,628.46,628.31,0.3183142]
[1742996250778,0.423,628.46,628.32,0.26298235]
[1742996250982,0.423,628.46,628.33,0.31830407]
[1742996251280,0.423,628.46,628.34,0.26298235]
[1742996253684,0.423,628.46,628.35,0.31829394]
[1742996253887,0.423,628.46,628.36,0.26298235]
[1742996254483,0.423,628.46,628.36,0.58127122]
[1742996254687,0.423,628.46,628.37,0.26298235]
[1742996255386,0.423,628.46,628.38,0.26297353]
[1742996255582,0.423,628.46,628.39,0.26297353]
[1742996255787,0.423,628.46,628.36,0.31828887]
[1742996255788,0.423,628.46,628.4,0.26297353]
[1742996255987,0.423,628.46,628.37,0.26297353]
[1742996256182,0.423,628.46,628.38,0.26297353]
[1742996256387,0.423,628.46,628.37,0.26297353]
[1742996256588,0.423,628.46,628.38,0.26297353]
[1742996256887,0.423,628.46,628.39,0.26297353]
[1742996257087,0.423,628.46,628.4,0.26297353]
[1742996257285,0.423,628.46,628.36,0.31828887]
[1742996257286,0.423,628.46,628.39,1.18586559]
[1742996257485,0.423,628.46,628.4,0.26297353]
[1742996258489,0.423,628.46,628.41,0.26296621]
[1742996258791,0.423,628.46,628.42,0.26296621]
[1742996258991,0.423,628.46,628.4,0.26296621]
[1742996259185,0.423,628.46,628.41,0.26296621]
[1742996259384,0.423,628.46,628.4,0.26296621]
[1742996259584,0.423,628.46,628.41,0.26296621]
[1742996259785,0.423,628.46,628.42,0.26296621]
[1742996259985,0.423,628.46,628.36,0.31828887]
[1742996260190,0.423,628.46,628.37,0.26296303]
[1742996260388,0.423,628.46,628.37,0.58124684]
[1742996260593,0.423,628.46,628.38,0.26296303]
[1742996261693,0.423,628.46,628.39,0.26295291]
[1742996261890,0.423,628.46,628.38,0.26295291]
[1742996262189,0.423,628.46,628.39,0.26295291]
[1742996262390,0.423,628.46,628.4,0.26295291]
[1742996262594,0.423,628.46,628.38,0.26295291]
[1742996262792,0.423,628.46,628.39,0.26295291]
[1742996262992,0.423,628.46,628.4,0.26295291]
[1742996263297,0.423,628.46,628.41,0.26295291]
[1742996263490,0.423,628.46,628.38,0.26295291]
[1742996263695,0.423,628.46,628.39,0.26295291]
[1742996263998,0.423,628.46,628.4,0.26295291]
[1742996264196,0.423,628.46,628.41,0.26295291]
[1742996264392,0.423,628.46,628.42,0.26295291]
[1742996264598,0.423,628.46,628.38,0.26295291]
[1742996264798,0.423,628.46,628.43,0.26295291]
[1742996265093,0.423,628.46,628.44,0.26295291]
[1742996267198,0.906,628.6,628.44,0.26295291]
[1742996267598,0.494,628.62,628.44,0.26295291]
[1742996269598,0.494,628.62,628.55,1.18279258]
[1742996269915,0.494,628.62,628.56,0.26295291]
[1742996270897,0.494,628.62,628.55,1.18279258]
[1742996272202,0.494,628.62,628.43,0.31825342]
[1742996272402,0.494,628.62,628.47,0.27668346]
[1742996272702,0.494,628.62,628.48,0.3182281]
[1742996273505,0.494,628.62,628.49,0.26286719]
[1742996273701,0.494,628.62,628.5,0.31821797]
[1742996274003,0.494,628.62,628.51,0.26286719]
[1742996274205,0.494,628.62,628.52,0.31820785]
[1742996274405,0.494,628.62,628.53,0.26286719]
[1742996274606,0.494,628.62,628.54,0.31819772]
[1742996274805,0.494,628.62,628.55,0.26286719]
[1742996275005,0.494,628.62,628.56,0.3181876]
[1742996275306,0.494,628.62,628.57,0.26286719]
[1742996275508,0.494,628.62,628.58,0.31817747]
[1742996275808,0.494,628.62,628.59,0.26286719]
[1742996276112,0.494,628.62,628.6,0.31816735]
[1742996276306,0.494,628.62,628.61,0.26286719]
[1742996276900,0.494,628.62,628.61,0.58102948]
[1742996278907,0.47991084,628.62,628.61,0.58102948]
[1742996279101,1.148,628.79,628.61,0.58102948]
[1742996279308,1.148,628.79,628.62,0.58102442]
[1742996279607,1.148,628.79,628.63,0.58101936]
[1742996279807,1.148,628.79,628.64,0.5810143]
[1742996280003,1.148,628.79,628.65,0.58100924]
[1742996280206,1.148,628.79,628.66,0.58100417]
[1742996280408,1.148,628.79,628.67,0.58099911]
[1742996280708,1.148,628.79,628.68,0.58028816]
[1742996280906,1.148,628.79,628.69,0.2621613]
[1742996281909,1.148,628.79,628.68,0.31812686]
[1742996281910,1.148,628.79,628.7,0.26215497]
[1742996282102,1.148,628.79,628.69,0.26215497]
[1742996282306,1.148,628.79,628.7,0.26215497]
[1742996282508,1.148,628.79,628.69,0.26215497]
[1742996282811,1.148,628.79,628.7,0.26215497]
[1742996284210,1.148,628.79,628.69,1.18586559]
[1742996285211,1.148,628.79,628.68,0.31812686]
[1742996288411,1.148,628.79,628.69,0.26216754]
[1742996289714,1.148,628.79,628.68,0.31812686]
[1742996290012,1.148,628.79,628.69,0.2621568]
[1742996292512,1.148,628.79,628.75,1.19008405]
[1742996292719,1.148,628.79,628.76,0.2621568]
[1742996292917,1.148,628.79,628.75,1.19008405]
[1742996293118,1.148,628.79,628.76,0.26215582]
[1742996295315,1.148,628.79,628.77,2.1722916]
[1742996295617,1.148,628.79,628.78,0.26215582]
[1742996296017,1.148,628.79,628.77,2.1722916]
[1742996296323,1.148,628.79,628.78,0.26216047]
[1742996297717,1.148,628.79,628.78,1.24435558]
[1742996297915,0.726,628.79,628.78,1.24435558]
[1742996298119,0.479,629.37,628.78,1.24435558]
[1742996298320,0.479,629.37,628.78,0.98220755]
[1742996299229,0.479,629.37,628.75,1.18649374]
[1742996300931,0.422,629.36,628.77,1.18649374]
[1742996301629,0.866,629.35,628.77,1.18649374]
[1742996305832,0.866,629.35,628.69,1.18649374]
[1742996306735,0.479,629.34,628.69,1.18649374]
[1742996307336,0.479,629.34,628.77,1.18649374]
[1742996309435,0.90289869,629.33,628.77,1.18649374]
[1742996309834,0.90289869,629.33,628.78,1.18649374]
[1742996310131,0.479,629.34,628.78,1.18649374]
[1742996310938,0.90312344,629.33,628.78,1.18649374]
[1742996311634,0.90312344,629.32,628.78,1.18649374]
[1742996312031,0.90312344,629.31,628.78,1.18649374]
[1742996312330,0.90312344,629.31,628.69,1.18649374]
[1742996312536,0.90312344,629.3,628.69,1.18649374]
[1742996312931,0.90312344,629.29,628.69,1.18649374]
[1742996313333,0.90312344,629.28,628.69,1.18649374]
[1742996313636,0.479,629.34,628.69,1.18649374]
[1742996314235,0.90350295,629.33,628.75,1.18649374]
[1742996314630,0.90350295,629.32,628.75,1.18649374]
[1742996315036,0.90350295,629.31,628.75,1.18649374]
[1742996315237,0.90350295,629.3,628.76,0.26225098]
[1742996315437,0.90350295,629.29,628.76,0.26225098]
[1742996316039,0.479,629.34,628.76,0.26225098]
[1742996316635,0.479,629.34,628.77,1.18649374]
[1742996316840,0.479,629.34,628.78,0.26225098]
[1742996318441,0.479,629.34,628.77,1.18649374]
[1742996318638,0.479,629.34,628.78,0.26226037]
[1742996319242,0.479,629.34,628.77,1.18649374]
[1742996320148,0.479,629.34,628.81,1.18649374]
[1742996321648,0.652,629.33,628.81,1.18649374]
[1742996322350,0.652,629.33,628.68,0.31812686]
[1742996330254,1.075,629.33,628.68,0.31812686]
[1742996331761,1.075,629.33,628.77,1.18649374]
[1742996333162,1.075,629.33,628.8,1.18649374]
[1742996334266,1.075,629.33,628.83,1.18649374]
[1742996337567,1.075,629.33,628.85,1.18649374]
[1742996339367,1.555,629.33,628.85,1.18649374]
[1742996339568,1.555,629.33,628.88,1.18649374]
[1742996342179,1.555,629.33,628.89,1.18649374]
[1742996343979,1.555,629.33,628.54,1.18649374]
[1742996344373,0.27667686,629.32,628.54,1.18649374]
[1742996345278,0.31780839,629.31,628.54,1.18649374]
[1742996346081,0.31780839,629.31,628.3,1.18649374]
[1742996347282,0.27674286,629.3,628.3,1.18649374]
[1742996347984,0.423,629.29,628.3,1.18649374]
[1742996348191,0.423,629.29,628.31,0.26235439]
[1742996348492,0.827,629.28,628.31,0.26235439]
[1742996348681,0.827,629.28,628.32,0.31830914]
[1742996348881,0.827,629.28,628.33,0.26229903]
[1742996349085,0.827,629.28,628.34,0.31829901]
[1742996349383,0.827,629.28,628.35,0.26229903]
[1742996349587,0.827,629.28,628.36,0.31828887]
[1742996349889,0.827,629.28,628.37,0.26229903]
[1742996350089,0.827,629.28,628.38,0.31827874]
[1742996350289,0.827,629.28,628.39,0.26229903]
[1742996350493,0.827,629.28,628.4,0.31826861]
[1742996350682,0.827,629.28,628.41,0.26229903]
[1742996350988,0.827,629.28,628.42,0.58052711]
[1742996351188,0.827,629.28,628.43,0.26226863]
[1742996352489,0.827,629.28,628.44,0.31824836]
[1742996352689,0.827,629.28,628.45,0.26226863]
[1742996352897,0.827,629.28,628.46,0.31823823]
[1742996353086,0.827,629.28,628.47,0.26226863]
[1742996353386,0.827,629.28,628.48,0.58047057]
[1742996353691,0.827,629.28,628.49,0.58046551]
[1742996353891,0.827,629.28,628.5,0.26224247]
[1742996354393,0.827,629.28,628.57,1.18649374]
[1742996354594,0.827,629.28,628.58,0.26224247]
[1742996355296,0.827,629.28,628.49,0.31822304]
[1742996355505,0.827,629.28,628.5,0.26224034]
[1742996355795,0.827,629.28,628.51,0.58039453]
[1742996355996,0.827,629.28,628.52,0.58038947]
[1742996356196,0.827,629.28,628.53,0.58038441]
[1742996356395,0.827,629.28,628.54,0.58037934]
[1742996356592,0.827,629.28,628.55,0.58037428]
[1742996356792,0.827,629.28,628.56,0.26218162]
[1742996357898,0.827,629.28,628.57,0.26220705]
[1742996358099,0.827,629.28,628.58,0.26220705]
[1742996358291,0.827,629.28,628.56,0.26220705]
[1742996358491,0.827,629.28,628.55,0.31819266]
[1742996358492,0.827,629.28,628.57,0.26220705]
[1742996358697,0.827,629.28,628.58,0.26220705]
[1742996358897,0.827,629.28,628.55,0.31819266]
[1742996361798,0.48,629.27,628.55,0.31819266]
[1742996364999,0.48,629.27,628.56,0.26229175]
[1742996370607,0.744,629.26,628.56,0.26229175]
[1742996372607,0.423,629.25,628.56,0.26229175]
[1742996387818,0.744,629.26,628.56,0.26229175]
[1742996390325,0.423,629.25,628.56,0.26229175]
[1742996392031,0.481,629.24,628.56,0.26229175]
[1742996395334,0.809,629.23,628.56,0.26229175]
[1742996406042,0.809,629.23,628.57,0.31818254]
[1742996406244,0.809,629.23,628.58,0.26229175]
[1742996406439,0.809,629.23,628.59,0.31817241]
[1742996406642,0.809,629.23,628.6,0.26229175]
[1742996406840,0.423,629.22,628.6,0.26229175]
[1742996407049,0.423,629.22,628.61,0.31816229]
[1742996407243,0.423,629.22,628.62,0.26229175]
[1742996408841,0.423,629.22,628.63,0.31815217]
[1742996409042,0.423,629.22,628.64,0.26229175]
[1742996409541,0.423,629.22,628.65,0.31814205]
[1742996409739,0.423,629.22,628.66,0.26229175]
[1742996414447,0.423,629.22,628.67,0.31813192]
[1742996414845,0.423,629.22,628.68,0.26212997]
[1742996415043,0.423,629.22,628.69,0.3181218]
[1742996415257,0.423,629.22,628.7,0.26212944]
[1742996415552,0.423,629.22,628.71,0.31811168]
[1742996416351,0.423,629.22,628.72,0.26212526]
[1742996416548,0.423,629.22,628.73,0.31810156]
[1742996416747,0.423,629.22,628.74,0.26212526]
[1742996417548,0.82,629.21,628.74,0.26212526]
[1742996418249,0.82,629.21,628.73,0.31810156]
[1742996418653,0.82,629.21,628.74,0.26212595]
[1742996419057,0.82,629.21,628.99,1.18810563]
[1742996420355,0.82,629.21,629.0,0.26212328]
[1742996421253,0.82,629.21,628.99,1.18810563]
[1742996422149,0.82,629.21,629.12,1.18810563]
[1742996424656,0.82,629.21,628.91,1.18810563]
[1742996425755,0.82,629.21,628.92,0.26208814]
[1742996427259,0.82,629.21,628.93,0.26207392]
[1742996427459,0.82,629.21,628.9,0.26207392]
[1742996427662,0.82,629.21,628.89,1.18810563]
[1742996427663,0.82,629.21,628.91,0.26207392]
[1742996427961,0.82,629.21,628.92,0.26207392]
[1742996428155,0.82,629.21,628.9,0.26207392]
[1742996428354,0.82,629.21,628.91,0.26207392]
[1742996428558,0.82,629.21,628.92,0.26207396]
[1742996428858,0.82,629.21,628.93,0.26207396]
[1742996429161,0.82,629.21,629.03,1.18810563]
[1742996429355,0.82,629.21,629.04,0.26207396]
[1742996430056,0.82,629.21,629.05,0.26207403]
[1742996430255,0.82,629.21,629.04,0.26207403]
[1742996430458,0.82,629.21,629.06,0.26207403]
[1742996430655,0.82,629.21,629.05,0.26207403]
[1742996430860,0.82,629.21,629.06,0.26207403]
[1742996431162,0.82,629.21,629.07,0.26207403]
[1742996431359,0.82,629.21,629.04,0.26207403]
[1742996431561,0.82,629.21,629.13,1.18810563]
[1742996431761,0.82,629.21,629.14,0.26207244]
[1742996433565,0.82,629.21,629.1,0.26207244]
[1742996433760,0.82,629.21,629.11,0.26207244]
[1742996433959,0.82,629.21,629.12,0.26207244]
[1742996434164,0.82,629.21,629.13,0.26207244]
[1742996434365,0.82,629.21,629.14,0.26207244]
[1742996434560,0.82,629.21,629.1,0.26207244]
[1742996434758,0.82,629.21,629.11,0.26207244]
[1742996434961,0.82,629.21,629.1,0.26207244]
[1742996435162,0.82,629.21,629.11,0.26207244]
[1742996435361,0.82,629.21,629.1,0.26207244]
[1742996435563,0.82,629.21,629.11,0.26207244]
[1742996435764,0.82,629.21,629.12,0.26207244]
[1742996435967,0.82,629.21,629.13,0.26207244]
[1742996436166,0.82,629.21,629.1,0.26207244]
[1742996436463,0.82,629.21,629.16,1.18810563]
[1742996436665,0.82,629.21,629.17,0.26207244]
[1742996436860,0.82,629.21,629.16,1.18810563]
[1742996439068,0.82,629.21,629.07,1.18810563]
[1742996439264,0.82,629.21,629.08,0.26205658]
[1742996440461,0.82,629.21,629.07,1.18810563]
[1742996441473,0.82,629.21,629.08,0.26206244]
[1742996441673,0.82,629.21,629.09,0.26206244]
[1742996441974,0.82,629.21,629.04,1.18810563]
[1742996442274,0.82,629.21,629.05,0.26206191]
[1742996443776,0.481,629.35,629.05,0.26206191]
[1742996444076,0.481,629.35,629.17,1.18810563]
[1742996444276,0.481,629.35,629.18,0.26206191]
[1742996445477,0.481,629.35,629.19,0.26205786]
[1742996445676,0.481,629.35,629.18,0.26205786]
[1742996445876,0.481,629.35,629.19,0.26205786]
[1742996446177,0.481,629.35,629.17,1.18810563]
[1742996446178,0.481,629.35,629.2,0.26205786]
[1742996446379,0.481,629.35,629.23,1.18810563]
[1742996446674,0.424,629.39,629.23,1.18810563]
[1742996446879,0.424,629.39,629.24,0.26206275]
[1742996448373,0.424,629.39,629.23,1.18810563]
[1742996448575,0.424,629.39,629.36,1.18810563]
[1742996450775,0.424,629.39,629.11,1.18810563]
[1742996452692,0.424,629.39,629.12,1.18810563]
[1742996454983,0.424,629.39,629.24,1.18810563]
[1742996455187,0.424,629.39,629.25,0.26209674]
[1742996456482,0.424,629.39,629.33,1.18810563]
[1742996460690,1.21737067,629.38,629.01,1.18810563]
[1742996460884,0.424,629.39,629.01,1.18810563]
[1742996461087,1.21738267,629.38,629.01,1.18810563]
[1742996461284,1.21758934,629.37,629.01,1.18810563]
[1742996461492,0.424,629.39,629.02,0.26216502]
[1742996463091,0.87,629.46,629.24,1.18810563]
[1742996463293,1.21831565,629.45,629.24,1.18810563]
[1742996463490,1.21831565,629.44,629.24,1.18810563]
[1742996463688,1.21831565,629.43,629.24,1.18810563]
[1742996463891,0.87,629.46,629.24,1.18810563]
[1742996464094,1.21831378,629.45,629.24,1.18810563]
[1742996464291,1.21831378,629.44,629.24,1.18810563]
[1742996464592,1.21831378,629.44,623.44,5.67701499]
[1742996464593,1.21831378,629.43,629.21,1.18810563]
[1742996464795,1.21831378,629.42,629.21,1.18810563]
[1742996464994,0.87,629.46,629.21,1.18810563]
[1742996465189,1.21857174,629.45,629.21,1.18810563]
[1742996465394,1.21857174,629.44,629.21,1.18810563]
[1742996465594,1.21857174,629.43,629.21,1.18810563]
[1742996465895,0.481,629.59,629.21,1.18810563]
[1742996466097,1.21881078,629.58,629.21,1.18810563]
[1742996466292,1.21881078,629.57,629.21,1.18810563]
[1742996466493,1.21881078,629.56,629.21,1.18810563]
[1742996466691,1.21881078,629.55,629.21,1.18810563]
[1742996466896,1.21881078,629.54,629.21,1.18810563]
[1742996467092,1.21881078,629.53,629.21,1.18810563]
[1742996467295,1.21881078,629.52,629.21,1.18810563]
[1742996467502,1.21881078,629.51,629.2,1.18810563]
[1742996467696,1.21881078,629.5,629.2,1.18810563]
[1742996467896,1.21881078,629.49,629.2,1.18810563]
[1742996468099,1.21881078,629.48,629.2,1.18810563]
[1742996468297,1.21881078,629.47,629.2,1.18810563]
[1742996468497,1.21881078,629.46,629.2,1.18810563]
[1742996468700,1.78181078,629.45,629.2,1.18810563]
[1742996468994,1.21946326,629.44,629.2,1.18810563]
[1742996469198,1.21946326,629.43,629.2,1.18810563]
[1742996469499,1.21946326,629.42,629.2,1.18810563]
[1742996469697,0.563,629.45,628.97,1.18810563]
[1742996469894,1.21970021,629.44,628.97,1.18810563]
[1742996470094,1.21970021,629.43,628.97,1.18810563]
[1742996470292,1.21970021,629.42,628.97,1.18810563]
[1742996470601,1.21970021,629.41,628.97,1.18810563]
[1742996470799,1.21970021,629.4,628.97,1.18810563]
[1742996470998,0.563,629.45,628.97,1.18810563]
[1742996471297,1.21977117,629.44,628.97,1.18810563]
[1742996471499,1.21977117,629.43,628.97,1.18810563]
[1742996471694,1.21977117,629.42,628.97,1.18810563]
[1742996471999,1.21977117,629.41,628.89,1.18810563]
[1742996472198,1.21977117,629.4,628.89,1.18810563]
[1742996472500,1.21977117,629.39,628.89,1.18810563]
[1742996472798,0.563,629.45,628.89,1.18810563]
[1742996472994,1.219933,629.44,628.89,1.18810563]
[1742996473193,1.219933,629.43,628.89,1.18810563]
[1742996473395,1.219933,629.42,628.89,1.18810563]
[1742996473599,1.219933,629.41,628.89,1.18810563]
[1742996473794,1.219933,629.4,628.89,1.18810563]
[1742996473995,1.219933,629.39,628.89,1.18810563]
[1742996474197,1.219933,629.38,628.89,1.18810563]
[1742996474400,1.219933,629.37,628.89,1.18810563]
[1742996474601,1.219933,629.36,628.89,1.18810563]
[1742996474899,1.219933,629.35,628.88,1.18810563]
[1742996475099,0.563,629.45,628.88,1.18810563]
[1742996475295,1.21987561,629.44,628.88,1.18810563]
[1742996475496,1.21987561,629.43,628.88,1.18810563]
[1742996475701,1.21987561,629.42,628.89,0.26215699]
[1742996475902,1.21987561,629.41,628.89,0.26215699]
[1742996476102,1.21987561,629.4,628.89,0.26215699]
[1742996476298,1.21987561,629.39,628.89,0.26215699]
[1742996476504,1.21987561,629.38,628.89,0.26215699]
[1742996476705,1.21987561,629.37,628.89,0.26215699]
[1742996476905,1.21987561,629.36,628.89,0.26215699]
[1742996477106,1.21987561,629.35,628.89,0.26215699]
[1742996477306,1.21987561,629.34,628.95,1.18810563]
[1742996477502,1.70187561,629.33,628.96,0.26215699]
[1742996477703,1.21987561,629.32,628.96,0.26215699]
[1742996478001,1.21987561,629.31,628.96,0.26215699]
[1742996478206,0.482,629.33,628.96,0.26215699]
[1742996478402,1.21926569,629.32,628.96,0.26215699]
[1742996478607,0.482,629.33,628.97,0.26217227]
[1742996478802,1.21927081,629.32,628.96,0.26217227]
[1742996479012,1.21927081,629.31,628.95,1.18810563]
[1742996479200,1.21927081,629.3,628.95,1.18810563]
[1742996479503,1.21927081,629.29,628.95,1.18810563]
[1742996479704,1.21927081,629.28,629.02,1.18810563]
[1742996479904,1.21927081,629.27,629.02,1.18810563]
[1742996480205,1.21927081,629.26,629.02,1.18810563]
[1742996480517,1.21927081,629.25,629.02,1.18810563]
[1742996480712,1.21839421,629.24,629.02,1.18810563]
[1742996480906,1.21839421,629.23,629.02,1.18810563]
[1742996481106,1.21839421,629.22,629.02,1.18810563]
[1742996481305,1.21839421,629.21,629.02,1.18810563]
[1742996481502,1.21761627,629.2,629.02,1.18810563]
[1742996481808,1.21761627,629.19,629.02,1.18810563]
[1742996482004,1.21761627,629.18,629.02,1.18810563]
[1742996482207,1.21761627,629.17,629.02,1.18810563]
[1742996482404,1.21695441,629.16,629.02,1.18810563]
[1742996482603,0.482,629.33,628.66,1.18810563]
[1742996482807,1.21696405,629.32,628.67,0.26226905]
[1742996483007,1.21696405,629.31,628.67,0.26226905]
[1742996483207,1.21696405,629.3,628.67,0.26226905]
[1742996483407,1.21696405,629.29,628.67,0.26226905]
[1742996483605,1.21641257,629.28,628.67,0.26226905]
[1742996483805,1.21641257,629.27,628.67,0.26226905]
[1742996484006,1.21641257,629.26,628.73,1.18810563]
[1742996484207,1.21641257,629.25,628.74,0.26226905]
[1742996484519,1.21596232,629.24,628.74,0.26226905]
[1742996484712,1.21596232,629.23,628.73,1.18810563]
[1742996484910,0.482,629.33,628.74,0.26227074]
[1742996485106,1.21596832,629.32,628.74,0.26227074]
[1742996485310,1.21596832,629.31,628.74,0.26227074]
[1742996485613,1.21596832,629.3,628.74,0.26227074]
[1742996485914,1.21596832,629.29,628.74,0.26227074]
[1742996486111,1.21596832,629.28,628.74,0.26227074]
[1742996486311,1.21596832,629.27,628.74,0.26227074]
[1742996486612,1.21596832,629.26,628.74,0.26227074]
[1742996486811,1.21596832,629.25,628.74,0.26227074]
[1742996487011,1.21596832,629.24,628.74,0.26227074]
[1742996487211,0.75864606,629.33,628.74,0.26227074]
[1742996487411,1.21467124,629.32,628.74,0.26227074]
[1742996487608,1.21467124,629.31,628.74,0.26227074]
[1742996487809,1.21467124,629.3,628.74,0.26227074]
[1742996488113,1.21467124,629.29,628.74,0.26227074]
[1742996488309,1.21467124,629.28,628.74,0.26227074]
[1742996488513,1.21467124,629.27,628.74,0.26227074]
[1742996488706,0.27665486,629.32,628.74,0.26227074]
[1742996488912,1.21441985,629.31,628.74,0.26227074]
[1742996489111,1.21441985,629.3,628.74,0.26227074]
[1742996489308,1.21441985,629.29,628.74,0.26227074]
[1742996489519,1.21441985,629.28,628.74,0.26227074]
[1742996489710,1.21441985,629.27,628.74,0.26227074]
[1742996489915,0.27665486,629.32,628.74,0.26227074]
[1742996490114,1.21415468,629.31,628.74,0.26227074]
[1742996490414,1.21415468,629.3,628.74,0.26227074]
[1742996490614,1.21415468,629.29,628.74,0.26227074]
[1742996490813,1.21415468,629.28,628.74,0.26227074]